fUSD/lending_fUSD_20251014
["ID","MTS","AMOUNT","RATE_DAILY","PERIOD"]
[391154031,1760400625872,306.05,0.00013699,2]
[391154032,1760400626080,306.05,0.00020187,2]
[391154066,1760400633281,-500.0,0.00023726,2]
[391154067,1760400633290,-184.57649485,0.00025827,120]
[391154068,1760400633302,-1815.42350515,0.00025827,120]
[391154069,1760400633311,-300.0,0.00025827,2]
[391154070,1760400633320,-195.0,0.00025827,2]
[391154071,1760400633329,-521.89,0.00026493,2]
[391154072,1760400633339,-306.05,0.00026676,2]
[391154073,1760400633348,-281.40148756,0.00026703,2]
[391154074,1760400633360,-918.59851244,0.00026703,2]
[391154075,1760400633369,-150.0,0.00026704,4]
[391154076,1760400633378,-150.0,0.00026704,4]
[391154077,1760400633387,-150.0,0.00026704,4]
[391154078,1760400633396,-150.0,0.00026704,4]
[391154079,1760400633406,-150.0,0.00026704,4]
[391154080,1760400633416,-270.96171645,0.00027071,2]
[391154081,1760400633425,-208.43208969,0.00027077,2]
[391154082,1760400633435,-208.43208969,0.0002711,2]
[391154083,1760400633445,-270.96171645,0.00027151,2]
[391154084,1760400633455,-270.96171645,0.00027185,2]
[391154085,1760400633464,-208.43208969,0.00027192,2]
[391154086,1760400633473,-463.27860312,0.00027935,55]
[391154087,1760400633482,-300.0,0.00028034,2]
[391154088,1760400633492,-500.0,0.00028035,7]
[391154089,1760400633501,-141.2980954,0.00028035,7]
[391154090,1760400633512,-758.7019046,0.00028035,7]
[391154091,1760400633521,-168.0,0.00028039,2]
[391154092,1760400633530,-373.2980954,0.00028114,56]
[391154093,1760400633553,-89.98050771,0.00028114,56]
[391154094,1760400633562,-250.0,0.00028171,2]
[391154095,1760400633571,-363.00665861,0.00028294,56]
[391154096,1760400633582,-100.2719445,0.00028294,56]
[391154097,1760400633592,-184.13,0.00028307,2]
[391154098,1760400633602,-253.0,0.00028318,2]
[391154099,1760400633611,-1299.42047373,0.00028318,2]
[391154100,1760400633623,-2053.98952627,0.00028318,2]
[391154101,1760400633632,-299.99,0.00028318,12]
[391154102,1760400633642,-274.68051239,0.00028318,9]
[391154103,1760400633651,-8049.48739787,0.00028322,2]
[391154104,1760400633662,-12688.81260213,0.00028322,2]
[391154105,1760400633671,-463.27860311,0.00028473,57]
[391154106,1760400633681,-702.7,0.0002855,120]
[391154107,1760400633692,-463.27860311,0.00028653,57]
[391154108,1760400633701,-250.0,0.00028665,7]
[391154109,1760400633711,-300.0,0.00028669,2]
[391154110,1760400633721,-2222.0,0.0002867,2]
[391154111,1760400633731,-2288.0,0.0002867,2]
[391154112,1760400633740,-1016.86284489,0.0002867,2]
[391154130,1760400637631,-883.13715511,0.0002867,2]
[391154132,1760400637640,-208.42,0.0002867,2]
[391154134,1760400637650,-1484.9674307,0.0002873,2]
[391154136,1760400637661,-1403.0325693,0.0002873,2]
[391154138,1760400637671,-168.0,0.00028731,2]
[391154139,1760400637682,-311.25,0.00028753,2]
[391154140,1760400637692,-1000.0,0.00028767,120]
[391154141,1760400637703,-250.61453202,0.00028767,120]
[391154142,1760400637724,-500.66669255,0.00028767,120]
[391154143,1760400637821,-304.59816976,0.00028767,120]
[391154305,1760400639584,-2.82060567,0.00028767,120]
[391154308,1760400639595,-257.91778498,0.0002877,2]
[391154310,1760400639605,-731.32887097,0.0002877,2]
[391154321,1760400639699,-500.0,0.0002877,2]
[391154347,1760400639931,-660.67112903,0.0002877,2]
[391154349,1760400639942,-602.54421046,0.00028787,2]
[391154565,1760400642839,-455.1630316,0.00028787,2]
[391154566,1760400642851,-463.27860311,0.00028832,58]
[391154567,1760400642861,-500.0,0.00028857,7]
[391154568,1760400642871,-900.0,0.00028857,7]
[391154569,1760400642883,-993.0,0.00028905,2]
[391154570,1760400642892,-994.0,0.0002891,2]
[391154571,1760400642902,-9999.99,0.00029009,2]
[391154572,1760400642912,-19999.99,0.00029009,2]
[391154573,1760400642922,-5668.58,0.00029009,2]
[391154574,1760400642932,-463.27860311,0.00029012,58]
[391154575,1760400642941,-1892.0,0.00029067,2]
[391154576,1760400642952,-463.27860311,0.00029191,58]
[391154577,1760400642961,-993.0,0.00029329,2]
[391154578,1760400642971,-1892.0,0.00029363,2]
[391154579,1760400642985,-463.27860311,0.00029371,59]
[391154580,1760400642995,-200.0,0.00029439,2]
[391154581,1760400643005,-2000.0,0.00029486,120]
[391154582,1760400643015,-500.0,0.00029486,120]
[391154583,1760400643024,-463.27860311,0.0002955,59]
[391154584,1760400643034,-151.0,0.00029562,2]
[391154585,1760400643043,-151.0,0.00029562,2]
[391154587,1760400643053,-151.0,0.00029562,2]
[391154589,1760400643063,-151.0,0.00029562,2]
[391154591,1760400643073,-151.0,0.00029562,2]
[391154593,1760400643082,-151.0,0.00029562,2]
[391154595,1760400643091,-151.0,0.00029562,2]
[391154597,1760400643101,-200.0,0.00029562,2]
[391154599,1760400643111,-151.0,0.00029562,2]
[391154601,1760400643120,-151.0,0.00029562,2]
[391154603,1760400643130,-151.0,0.00029562,2]
[391154605,1760400643140,-151.0,0.00029562,2]
[391154607,1760400643150,-151.0,0.00029562,2]
[391154609,1760400643159,-169.12821945,0.00029562,2]
[391154611,1760400643169,-151.0,0.00029562,2]
[391154614,1760400643178,-151.0,0.00029562,2]
[391154616,1760400643188,-695.39793187,0.00029562,2]
[391154618,1760400643198,-151.0,0.00029562,2]
[391154620,1760400643207,-151.0,0.00029562,2]
[391154622,1760400643217,-151.0,0.00029562,2]
[391154624,1760400643227,-151.0,0.00029562,2]
[391154626,1760400643238,-151.0,0.00029562,2]
[391154628,1760400643247,-500.0,0.00029562,2]
[391154630,1760400643257,-500.0,0.00029562,2]
[391154632,1760400643267,-500.0,0.00029562,2]
[391154634,1760400643276,-500.0,0.00029562,2]
[391154636,1760400643285,-151.0,0.00029562,2]
[391154638,1760400643295,-500.0,0.00029562,2]
[391154640,1760400643304,-163.44482466,0.00029562,2]
[391154642,1760400643313,-500.0,0.00029562,2]
[391154644,1760400643323,-500.0,0.00029562,2]
[391154646,1760400643332,-500.0,0.00029562,2]
[391154649,1760400643342,-1230.60568295,0.00029562,2]
[391154651,1760400643358,-500.0,0.00029562,2]
[391154653,1760400643368,-1387.336,0.00029569,23]
[391154655,1760400643377,-2093.89522606,0.00029578,2]
[391154657,1760400643387,-153.97400373,0.00029578,2]
[391154659,1760400643397,-352.858,0.00029579,2]
[391154661,1760400643407,-5000.0,0.00029579,2]
[391154662,1760400643416,-294.2692288,0.00029579,2]
[391154663,1760400643426,-173.9442485,0.00029579,15]
[391154664,1760400643436,-1000.0,0.0002958,2]
[391154665,1760400643445,-313.31721064,0.00029582,2]
[391154666,1760400643455,-500.0,0.00029582,2]
[391154667,1760400643465,-500.0,0.00029582,2]
[391154668,1760400643474,-500.0,0.00029582,2]
[391154669,1760400643483,-500.0,0.00029582,2]
[391154670,1760400643492,-500.0,0.00029582,2]
[391154671,1760400643502,-500.0,0.00029582,2]
[391154672,1760400643511,-183.47499727,0.00029582,2]
[391154673,1760400643521,-500.0,0.00029582,2]
[391154674,1760400643530,-500.0,0.00029582,2]
[391154675,1760400643544,-500.0,0.00029582,2]
[391154676,1760400643553,-500.0,0.00029582,2]
[391154677,1760400643564,-500.0,0.00029582,2]
[391154678,1760400643574,-500.0,0.00029582,2]
[391154679,1760400643584,-2093.89522603,0.00029583,2]
[391154680,1760400643595,-151.0,0.00029586,7]
[391154681,1760400643605,-2093.89522603,0.00029588,2]
[391154682,1760400643615,-1685.24,0.00029589,59]
[391154683,1760400643625,-1685.24,0.00029589,59]
[391154684,1760400643636,-1685.24,0.00029589,59]
[391154685,1760400643648,-1685.24,0.00029589,59]
[391154686,1760400643659,-1685.24,0.00029589,59]
[391154687,1760400643670,-1685.24,0.00029589,59]
[391154688,1760400643681,-1685.24,0.00029589,59]
[391154689,1760400643693,-1685.24,0.00029589,59]
[391154690,1760400643703,-1685.24,0.00029589,59]
[391154691,1760400643715,-1685.24,0.00029589,59]
[391154692,1760400643726,-1685.24,0.00029589,59]
[391154693,1760400643738,-1685.24,0.00029589,59]
[391154694,1760400643748,-1685.24,0.00029589,59]
[391154695,1760400643758,-1685.24,0.00029589,59]
[391154696,1760400643768,-1685.24,0.00029589,59]
[391154697,1760400643779,-1685.24,0.00029589,59]
[391154698,1760400643789,-1685.24,0.00029589,59]
[391154699,1760400643801,-1685.24,0.00029589,59]
[391154700,1760400643813,-1685.24,0.00029589,59]
[391154701,1760400643823,-1685.24,0.00029589,59]
[391154702,1760400643833,-1133.79586986,0.00029589,59]
[391155272,1760401380365,-385.0,0.00024932,2]
[391155277,1760401518798,150.0,0.0001338,2]
[391155278,1760401530215,250.68,0.0001338,2]
[391155279,1760401565375,-1050.09588183,0.000135,2]
[391155280,1760401566416,-25.93027772,0.000135,2]
[391155287,1760401718433,3466.11,0.0001,2]
[391155288,1760401718457,5456.6544879,0.0001,2]
[391155289,1760401718478,4911.02266929,0.0001,2]
[391155290,1760401730334,-8000.0,0.0001488,2]
[391155291,1760401730964,-30.92295747,0.0001488,2]
[391155292,1760401730994,-165.22545033,0.000149,2]
[391155293,1760401731024,-4008.35669106,0.000149,2]
[391155294,1760401731053,-3795.49490114,0.000149,2]
[391155295,1760401732707,-1083.94748907,0.000149,2]
[391155296,1760401732735,-153.97400372,0.000149,2]
[391155297,1760401732765,-300.0,0.00014972,2]
[391155298,1760401732794,-500.0,0.00014973,2]
[391155299,1760401732822,-500.0,0.00014973,2]
[391155300,1760401732851,-500.0,0.00014973,2]
[391155301,1760401732879,-500.0,0.00014973,2]
[391155302,1760401733642,-502.80166226,0.00014973,2]
[391155303,1760401733735,-500.0,0.00014973,2]
[391155304,1760401733757,-500.0,0.00014973,2]
[391155305,1760401733777,-501.00952322,0.00014973,2]
[391155306,1760401733798,-500.0,0.00014973,2]
[391155307,1760401733821,-500.0,0.00014973,2]
[391155308,1760401733842,-500.0,0.00014973,2]
[391155309,1760401733865,-500.0,0.00014973,2]
[391155310,1760401733890,-458.26732173,0.00014973,2]
[391155312,1760401741988,-41.73267827,0.00014973,2]
[391155313,1760401742012,-1258.26732173,0.00014973,2]
[391155315,1760401750138,-502.50803453,0.00014973,2]
[391155316,1760401750164,-2309.27767904,0.00014973,2]
[391155317,1760401750185,-393.39816653,0.00014999,2]
[391155318,1760401750207,-500.0,0.00014999,2]
[391155319,1760401750230,-288.6777399,0.00014999,2]
[391155332,1760401831674,-208.15380563,0.000149,2]
[391155334,1760401831683,-157.69349699,0.000149,2]
[391155336,1760401831692,-500.0,0.00014973,2]
[391155337,1760401831701,-396.08345272,0.0001499,2]
[391155338,1760401831712,-300.0,0.00014998,2]
[391155339,1760401831728,-114.56674328,0.00014999,2]
[391155340,1760401831738,-275.84752403,0.00014999,2]
[391155341,1760401831747,-376.69680798,0.00014999,2]
[391155342,1760401831756,-500.0,0.00014999,2]
[391155343,1760401831765,-500.0,0.00014999,2]
[391155344,1760401831774,-219.59941847,0.00014999,2]
[391155345,1760401831784,-500.0,0.00014999,2]
[391155346,1760401831793,-150.0,0.00014999,2]
[391155347,1760401831802,-573.97603238,0.00015,2]
[391155348,1760401831814,-409337.42512991,0.00015,2]
[391155349,1760401831824,-534742.42055235,0.00015,2]
[391155350,1760401831836,-38014.56026566,0.00015,2]
[391155351,1760401831847,-43771.86677132,0.00015,2]
[391155352,1760401831856,-1128415.68946902,0.00015,2]
[391155353,1760401831866,-208.15380563,0.00015111,2]
[391155354,1760401831877,-208.15380563,0.00015321,2]
[391155355,1760401831887,-1000.0,0.00015521,2]
[391155356,1760401831896,-7135.09000154,0.00015968,2]
[391155358,1760401831906,-188.42,0.00016166,2]
[391155360,1760401831914,-446.61206028,0.00016368,2]
[391155361,1760401831924,-2500.0,0.00016368,2]
[391155362,1760401831935,-1050.0627,0.00016368,2]
[391155363,1760401831943,-420.0,0.00016415,2]
[391155364,1760401831953,-340.21438379,0.00016435,2]
[391155366,1760401831963,-4008.35669103,0.00016533,2]
[391155368,1760401831972,-4879.4423902,0.00016533,2]
[391155369,1760401831980,-10702.63500232,0.00016964,2]
[391155370,1760401831989,-587.0,0.00017965,2]
[391155371,1760401831999,-4008.35669103,0.00018167,2]
[391155372,1760401832008,-4879.4423902,0.00018167,2]
[391155373,1760401832019,-4008.35669103,0.000198,2]
[391155374,1760401832028,-4879.4423902,0.000198,2]
[391155375,1760401832040,-165.22545032,0.00019818,2]
[391155376,1760401832049,-501.47047831,0.00021,7]
[391155377,1760401832061,-552.91,0.00021357,2]
[391155378,1760401832070,-627.69,0.00021357,30]
[391155379,1760401832080,-4008.35669103,0.00021433,2]
[391155380,1760401832090,-4879.4423902,0.00021433,2]
[391155381,1760401832099,-150.0,0.00021615,2]
[391155382,1760401832109,-153.97400372,0.00022278,2]
[391155383,1760401832118,-4008.35669103,0.00023067,2]
[391155384,1760401832130,-4879.4423902,0.00023067,2]
[391155385,1760401832139,-162.24394715,0.00023899,2]
[391155386,1760401832150,-381.7559171,0.000239,2]
[391155387,1760401832159,-500.0,0.00023973,2]
[391155388,1760401832169,-500.0,0.00023973,2]
[391155389,1760401832181,-326.54925174,0.00023973,2]
[391155390,1760401832191,-500.0,0.00023973,2]
[391155391,1760401832200,-157.34214035,0.00023973,2]
[391155392,1760401832209,-204.90334545,0.00023973,2]
[391155393,1760401832219,-164.72984879,0.00023973,2]
[391155394,1760401832228,-500.0,0.00023973,2]
[391155395,1760401832237,-523.54619454,0.00023973,2]
[391155396,1760401832248,-500.0,0.00023973,2]
[391155397,1760401832257,-399381.6742,0.00024,2]
[391155398,1760401832266,-151.0,0.00024,7]
[391155399,1760401832275,-151.0,0.00024,7]
[391155400,1760401832285,-151.0,0.00024,7]
[391155401,1760401832294,-151.0,0.00024,7]
[391155402,1760401832303,-151.0,0.00024,7]
[391155403,1760401832312,-151.0,0.00024,7]
[391155404,1760401832322,-151.0,0.00024,7]
[391155405,1760401832331,-151.0,0.00024,7]
[391155406,1760401832340,-151.0,0.00024,7]
[391155407,1760401832349,-151.0,0.00024,7]
[391155408,1760401832358,-151.0,0.00024,7]
[391155409,1760401832367,-151.0,0.00024,7]
[391155410,1760401832378,-151.0,0.00024,7]
[391155411,1760401832387,-274.075697,0.00024,7]
[391155412,1760401832396,-151.0,0.00024,7]
[391155413,1760401832405,-235.772927,0.00024,7]
[391155414,1760401832414,-151.0,0.00024,7]
[391155415,1760401832422,-235.772927,0.00024,7]
[391155416,1760401832431,-151.0,0.00024,7]
[391155417,1760401832440,-235.772927,0.00024,7]
[391155418,1760401832450,-235.772927,0.00024,7]
[391155419,1760401832460,-450.885096,0.00024,7]
[391155420,1760401832470,-450.885096,0.00024,7]
[391155421,1760401832479,-151.0,0.00024,7]
[391155422,1760401832488,-450.885096,0.00024,7]
[391155423,1760401832497,-450.885096,0.00024,7]
[391155424,1760401832507,-151.0,0.00024,7]
[391155425,1760401832516,-151.0,0.00024,7]
[391155426,1760401832525,-151.0,0.00024,7]
[391155427,1760401832535,-227.541926,0.00024,7]
[391155428,1760401832545,-227.541926,0.00024,7]
[391155429,1760401832554,-151.0,0.00024,7]
[391155430,1760401832563,-227.541926,0.00024,7]
[391155431,1760401832573,-151.0,0.00024,7]
[391155432,1760401832582,-227.541926,0.00024,7]
[391155433,1760401832592,-151.0,0.00024,7]
[391155434,1760401832602,-151.0,0.00024,7]
[391155435,1760401832612,-151.0,0.00024,7]
[391155436,1760401832621,-516.865834,0.00024,7]
[391155437,1760401832633,-151.0,0.00024,7]
[391155438,1760401832642,-151.0,0.00024,7]
[391155439,1760401832652,-516.865834,0.00024,7]
[391155440,1760401832661,-151.0,0.00024,7]
[391155441,1760401832671,-151.0,0.00024,7]
[391155442,1760401832680,-516.865834,0.00024,7]
[391155443,1760401832690,-151.0,0.00024,7]
[391155444,1760401832699,-516.865834,0.00024,7]
[391155445,1760401832709,-151.0,0.00024,7]
[391155446,1760401832718,-151.0,0.00024,7]
[391155447,1760401832728,-977.431698,0.00024,7]
[391155448,1760401832737,-151.0,0.00024,7]
[391155449,1760401832747,-151.0,0.00024,7]
[391155450,1760401832756,-977.431698,0.00024,7]
[391155451,1760401832765,-151.0,0.00024,7]
[391155452,1760401832775,-151.0,0.00024,7]
[391155453,1760401832784,-151.0,0.00024,7]
[391155454,1760401832793,-977.431698,0.00024,7]
[391155455,1760401832803,-151.0,0.00024,7]
[391155456,1760401832812,-151.0,0.00024,7]
[391155457,1760401832821,-151.0,0.00024,2]
[391155458,1760401832830,-977.431698,0.00024,7]
[391155459,1760401832840,-151.0,0.00024,7]
[391155460,1760401832849,-1975.32,0.00024,7]
[391155461,1760401832858,-151.0,0.00024,7]
[391155462,1760401832867,-151.0,0.00024,7]
[391155463,1760401832879,-151.0,0.00024,7]
[391155464,1760401832888,-151.0,0.00024,7]
[391155465,1760401832897,-151.0,0.00024,7]
[391155466,1760401832907,-627.69,0.0002458,30]
[391155467,1760401832916,-4008.35669103,0.000247,2]
[391155468,1760401832926,-4879.4423902,0.000247,2]
[391155469,1760401832935,-165.22545032,0.00024737,2]
[391155470,1760401832946,-162962.979704,0.000248,3]
[391155471,1760401832956,-151.0,0.000248,7]
[391155472,1760401832966,-151.0,0.000248,7]
[391155473,1760401832975,-151.0,0.000248,7]
[391155474,1760401832985,-151.0,0.000248,7]
[391155475,1760401832994,-151.0,0.000248,7]
[391155476,1760401833004,-151.0,0.000248,7]
[391155477,1760401833013,-516.865834,0.000248,7]
[391155478,1760401833022,-151.304122,0.000248,7]
[391155479,1760401833032,-151.0,0.000248,7]
[391155480,1760401833041,-516.865834,0.000248,7]
[391155481,1760401833051,-151.0,0.000248,7]
[391155482,1760401833060,-151.0,0.000248,7]
[391155483,1760401833069,-516.865834,0.000248,7]
[391155484,1760401833079,-151.0,0.000248,7]
[391155485,1760401833089,-516.865834,0.000248,7]
[391155486,1760401833098,-151.0,0.000248,7]
[391155487,1760401833108,-151.0,0.000248,7]
[391155488,1760401833117,-977.431698,0.000248,7]
[391155489,1760401833128,-151.0,0.000248,7]
[391155490,1760401833138,-151.0,0.000248,7]
[391155491,1760401833147,-977.431698,0.000248,7]
[391155492,1760401833156,-151.0,0.000248,7]
[391155493,1760401833166,-151.0,0.000248,7]
[391155494,1760401833180,-151.0,0.000248,7]
[391155495,1760401833189,-977.431698,0.000248,7]
[391155496,1760401833198,-241.962159,0.000248,7]
[391155497,1760401833207,-151.0,0.000248,7]
[391155498,1760401833218,-151.0,0.000248,2]
[391155499,1760401833227,-977.431698,0.000248,7]
[391155500,1760401833236,-151.0,0.000248,7]
[391155501,1760401833245,-151.0,0.000248,7]
[391155502,1760401833256,-151.0,0.000248,7]
[391155503,1760401833266,-151.0,0.000248,7]
[391155504,1760401833275,-151.0,0.000248,7]
[391155505,1760401833284,-151.0,0.000248,7]
[391155506,1760401833294,-22405.75176549,0.000249,3]
[391155508,1760401837737,-151.0,0.00024,7]
[391155509,1760401837747,-274.004317,0.00024,7]
[391155510,1760401837756,-276.41351,0.00024,7]
[391155511,1760401837766,-12255.78880594,0.000249,3]
[391155512,1760401837799,-1105.96946261,0.000249,3]
[391155513,1760401837811,-6661.54687367,0.000249,3]
[391155514,1760401837828,-720.245,0.000249,3]
[391155515,1760401837859,-2737.53953495,0.000249,3]
[391155516,1760401837870,-2311.16,0.000249,3]
[391155693,1760401839739,-170.286635,0.00024,7]
[391155695,1760401839749,-54868.90781034,0.000249,3]
[391155697,1760401839758,-151.0,0.000249,7]
[391155699,1760401839768,-151.0,0.000249,7]
[391155702,1760401839778,-151.0,0.000249,7]
[391155704,1760401839787,-151.0,0.000249,7]
[391155706,1760401839796,-151.0,0.000249,7]
[391155707,1760401839805,-151.0,0.000249,7]
[391155709,1760401839814,-516.865834,0.000249,7]
[391155712,1760401839824,-151.0,0.000249,7]
[391155714,1760401839833,-516.865834,0.000249,7]
[391155715,1760401839842,-151.0,0.000249,7]
[391155717,1760401839852,-226.173982,0.000249,7]
[391155720,1760401839861,-516.865834,0.000249,7]
[391155721,1760401839870,-151.0,0.000249,7]
[391155724,1760401839880,-516.865834,0.000249,7]
[391155725,1760401839889,-977.431698,0.000249,7]
[391155727,1760401839898,-151.0,0.000249,7]
[391155729,1760401839907,-151.0,0.000249,7]
[391155731,1760401839915,-977.431698,0.000249,7]
[391155733,1760401839923,-151.0,0.000249,7]
[391155735,1760401839933,-151.0,0.000249,7]
[391155737,1760401839942,-151.0,0.000249,7]
[391155739,1760401839950,-977.431698,0.000249,7]
[391155741,1760401839960,-151.0,0.000249,7]
[391155744,1760401839970,-151.0,0.000249,2]
[391155745,1760401839979,-977.431698,0.000249,7]
[391155748,1760401839988,-151.0,0.000249,7]
[391155750,1760401839998,-151.0,0.000249,7]
[391155752,1760401840007,-151.0,0.000249,7]
[391155754,1760401840016,-151.0,0.000249,7]
[391155756,1760401840025,-151.0,0.000249,7]
[391155757,1760401840034,-151.0,0.000249,7]
[391155759,1760401840043,-500.0,0.00024932,2]
[391155762,1760401840052,-522.38,0.00025025,2]
[391155763,1760401840061,-519.36,0.00025036,2]
[391155765,1760401840070,-528.68,0.00025058,2]
[391155767,1760401840078,-519.33,0.00025058,2]
[391155769,1760401840088,-534.84,0.00025176,2]
[391155773,1760401840097,-534.95,0.00025176,2]
[391155775,1760401840106,-530.27,0.00025407,2]
[391155777,1760401840115,-522.98,0.00025407,2]
[391155779,1760401840124,-522.8,0.00025407,2]
[391155781,1760401840136,-532.17,0.00025407,2]
[391155783,1760401840145,-517.38,0.00025409,2]
[391155785,1760401840154,-530.46,0.00025409,2]
[391155787,1760401840163,-517.0,0.00025463,2]
[391155789,1760401840176,-528.91,0.00025463,2]
[391155791,1760401840185,-150.0,0.00025595,2]
[391155793,1760401840193,-150.0,0.00025595,2]
[391155795,1760401840203,-150.0,0.00025595,2]
[391155797,1760401840212,-150.0,0.00025595,2]
[391155799,1760401840222,-150.0,0.00025595,2]
[391155801,1760401840234,-150.0,0.00025595,2]
[391155803,1760401840244,-150.0,0.00025595,2]
[391155805,1760401840255,-150.0,0.00025595,2]
[391155807,1760401840264,-150.0,0.00025595,2]
[391155809,1760401840273,-150.0,0.00025595,2]
[391155811,1760401840282,-150.0,0.00025595,2]
[391155812,1760401840291,-150.0,0.00025595,2]
[391155815,1760401840301,-150.0,0.00025762,4]
[391155817,1760401840312,-150.0,0.00025853,4]
[391155819,1760401840326,-150.0,0.00025879,4]
[391155821,1760401840336,-1975.32,0.000259,7]
[391155823,1760401840346,-150.0,0.00025929,4]
[391155825,1760401840356,-13241.62451204,0.00026,10]
[391155827,1760401840365,-150.0,0.00026001,4]
[391155829,1760401840376,-150.0,0.00026001,4]
[391155831,1760401840392,-150.0,0.00026001,4]
[391155833,1760401840401,-666.0,0.00026068,3]
[391155835,1760401840411,-150.0,0.00026068,4]
[391155837,1760401840420,-150.0,0.00026068,4]
[391155839,1760401840429,-150.0,0.00026096,4]
[391155841,1760401840439,-150.0,0.00026112,4]
[391155843,1760401840448,-464.41888061,0.0002615,2]
[391155845,1760401840457,-150.0,0.00026163,4]
[391155847,1760401840466,-150.0,0.00026163,4]
[391155849,1760401840476,-150.0,0.00026264,4]
[391155851,1760401840485,-4008.35669103,0.00026333,2]
[391155852,1760401840495,-4879.4423902,0.00026333,2]
[391155853,1760401840504,-150.0,0.0002637,4]
[391155854,1760401840512,-150.0,0.00026407,4]
[391155855,1760401840521,-150.0,0.00026407,4]
[391155856,1760401840530,-150.0,0.00026407,4]
[391155857,1760401840539,-150.0,0.00026431,4]
[391155858,1760401840548,-150.0,0.00026448,4]
[391155859,1760401840557,-150.0,0.00026542,4]
[391155860,1760401840566,-150.0,0.00026542,4]
[391155861,1760401840574,-12085.24,0.00026582,2]
[391155863,1760401840583,-150.0,0.00026598,4]
[391155865,1760401840592,-150.0,0.00026629,4]
[391155867,1760401840600,-166.66,0.00026638,30]
[391155869,1760401840609,-150.0,0.00026732,4]
[391155871,1760401840618,-150.0,0.00026732,4]
[391155873,1760401840627,-150.0,0.00026766,4]
[391155875,1760401840638,-381.75591709,0.00026778,2]
[391155877,1760401840647,-150.0,0.00026813,4]
[391155879,1760401840656,-150.0,0.00026813,4]
[391155881,1760401840664,-150.0,0.00026813,4]
[391155882,1760401840673,-2468.07,0.00026823,2]
[391155884,1760401840682,-150.0,0.00026887,4]
[391155886,1760401840690,-150.0,0.00026933,4]
[391155888,1760401840699,-1975.32,0.00027,7]
[391155890,1760401840708,-150.0,0.00027016,4]
[391155892,1760401840717,-150.0,0.00027016,4]
[391155894,1760401840726,-150.0,0.00027016,4]
[391155896,1760401840735,-150.0,0.00027016,4]
[391155898,1760401840746,-150.0,0.00027041,2]
[391155900,1760401840757,-183.87450321,0.00027043,2]
[391155903,1760401840768,-289.72060448,0.00027096,2]
[391155904,1760401840777,-150.0,0.000271,4]
[391155906,1760401840787,-150.0,0.00027146,4]
[391155907,1760401840797,-183.87450321,0.00027155,2]
[391155909,1760401840806,-289.72060448,0.00027161,2]
[391155911,1760401840815,-289.72060448,0.00027164,2]
[391155913,1760401840825,-183.87450321,0.00027195,2]
[391155915,1760401840834,-166.66,0.00027199,30]
[391155917,1760401840843,-150.0,0.0002722,4]
[391155919,1760401840852,-150.0,0.0002722,4]
[391155921,1760401840861,-150.0,0.0002722,4]
[391155923,1760401840870,-150.0,0.00027267,4]
[391155925,1760401840881,-150.0,0.00027301,4]